{"text_format":"1","workbook":"xlsx","n_sheets":3,"sheets":["Data","Instruktion","Närvarorapport för deltagare"],"not_rendered":{"charts":0,"images":1,"macros":1,"external_links":0,"defined_names":10,"comments":0,"pivot_tables":0},"unopened":[],"bounds":{"document_bytes":16777216,"sheet_cells":100000,"rows_first":2000,"rows_last":500,"rows_between":2000,"halvings":0,"cell_chars":16384,"cell_head_chars":4096},"cells_cut":0,"cells_raw":0,"read":"whole","date_system":"1900"}

{"sheet":"Data","index":0,"n_rows":31,"n_cols":8,"rows_kept":31,"cut":false,"hidden":true,"merged":[]}
["Medfinansiär","Ref.kolumn för typ-av ers","Ref.kolumn för Typ av ersättning","Typaversattning","Månad","id",null,"ÅR"]
["Annan aktör",4,"Typaversattning_Annan_aktor","Ekonomiskt bistånd 18-24 år","Januari",1,null,"-"]
["Arbetsförmedlingen",2,"Typaversattning_Arbetsformedlingen","Ekonomiskt bistånd 25-29 år","Februari",2,null,2015]
["Försäkringskassan",3,"Typaversattning_Forsakringskassan","Ekonomiskt bistånd 30-64 år","Mars",3,null,2016]
["Kommun",4,"Typaversattning_Kommun",null,"April",4,null,2017]
[null,null,null,"Aktivitetsstöd och utvecklingsersättning 15-19 år","Maj",5,null,2018]
[null,null,null,"Aktivitetsstöd och utvecklingsersättning 20-24 år","Juni",6,null,2019]
[null,null,null,"Aktivitetsstöd och utvecklingsersättning 25-29 år","Juli",7,null,2020]
[null,null,null,"Aktivitetsstöd och utvecklingsersättning 30-44 år","Augusti",8,null,2021]
[null,null,null,"Aktivitetsstöd och utvecklingsersättning 45-69 år","September",9,null,2022]
[null,null,null,"Etableringsersättning","Oktober",10,null,2023]
[null,null,null,"Extra tjänster","November",11]
[null,null,null,"Introduktionsjobb","December",12]
[null,null,null,"Lönebidrag för utveckling"]
[]
[null,null,null,"Aktivitet- och sjukersättning 19-29 år"]
[null,null,null,"Aktivitet- och sjukersättning 30-64 år",1]
[null,null,null,"Sjuk- och rehab. penning 19 år eller yngre"]
[null,null,null,"Sjuk- och rehab. penning 20-64 år",{"$f":"MONTH(DATEVALUE('Närvarorapport för deltagare'!W7&\" 1\"))","v":{"$error":"#VALUE!"}}]
[]
[null,null,null,"Ingen ersättning",{"$f":"DATE('Närvarorapport för deltagare'!W8,Data!E19,Data!E17)","v":{"$error":"#VALUE!"}}]
[]
[]
[]
[]
[]
[]
[{"$f":"'Närvarorapport för deltagare'!C8","v":0},{"$f":"DATE(LEFT(A28,4)*1,MID(A28,5,2)*1,MID(A28,7,2)*1)","v":{"$error":"#VALUE!"}}]
[]
[]
[{"$f":"SUBSTITUTE(A28,\"-\",\"\")","v":"0"}]

{"sheet":"Instruktion","index":1,"n_rows":10,"n_cols":1,"rows_kept":10,"cut":false,"hidden":false,"merged":[[8,0,8,9],[9,0,9,9],[10,0,10,9],[2,0,2,9],[3,0,3,9],[4,0,4,9],[5,0,5,9],[6,0,6,9],[7,0,7,9]]}
[]
[]
["Instruktion"]
["för närvarorapport för deltagare i socialfondsprojekt \nInsatser inom Care - Insatser för kvinnor och mön från Ukraina som omfattas av massflyktingsdirektivet"]
["Som deltagare i ett projekt som är finansierat av Socialfonden måste du lämna uppgifter om hur många timmar du deltagit i projektverksamheten. Uppgifterna ligger till grund för projektets redovisning till Svenska ESF-rådet och Statistiska centralbyrån (SCB). \n\nBlanketten kommer att förvaras hos projektet och inte skickas vidare till Svenska ESF-rådet eller SCB. Projektet kommer att sammanställa din tid med andra deltagares tider och redovisa en samlad bild över den totala tiden som de som ingår i projektet redovisat.\n\nÖvre delen av blanketten kan fyllas i av den i projektet som ansvarar för administrationen av närvarorapporterna. Om du har kännedom om uppgifterna kan du fylla i dem själv. Du ska lämna en närvarorapport  för varje månad  som du deltar i projektet. \n"]
["Så här fyller du i blanketten:"]
["Övre delen av blanketten"]
["Deltagare: Fyll i ditt namn.\nPersonnummer: Ange ditt personnummer med 12 siffror  med bindestreck. \nDeltagare anvisad från: Rullist där du väljer var ifrån du får din försörjning. Den här uppgiften är nödvändig för nedanstående uppgift. Den styr valen i nästa rullist.\nTyp av ersättning och ålder: Rullist där du uppger vilken typ av ersättning du har och vilket åldersspann du är inom. \nDiarienummer: Uppge det diarienummer som Svenska ESF-rådet tilldelat projektet.\nProjektnamn: Uppge projektets namn.\nRedovisningsmånad: Rullist där du väljer den månad som uppgifterna avser.\nÅr: Rullist där du väljer det år som uppgifterna avser.\nBlanketten räknar automatiskt ut din ålder."]
["Nedre delen av blanketten"]
["Skriv kortfattat vilka aktiviteter du gjort i projektet och uppge hur många timmar per dag som du varit närvarande på dessa aktiviteter. Har du varit sjuk eller borta av någon annan anledning ska du inte fylla i någon tid.\n\nBlanketten räknar och summerar automatiskt ihop hur många timmar du varit närvarande per aktivitet samt total närvaro för den aktuella månaden.\n\nNär alla uppgifter för den aktuella perioden är ifyllda skriver du under blanketten och lämnar till den som är ansvarig från projektet."]

{"sheet":"Närvarorapport för deltagare","index":2,"n_rows":36,"n_cols":36,"rows_kept":36,"cut":false,"hidden":false,"merged":[[31,21,31,34],[9,19,9,21],[10,24,10,29],[11,4,11,34],[16,0,16,3],[15,0,15,3],[35,8,35,20],[23,0,23,3],[11,35,12,35],[8,6,8,14],[1,4,1,24],[6,0,6,1],[7,22,7,34],[3,16,3,21],[11,0,12,3],[3,22,3,34],[4,22,4,34],[6,2,6,14],[27,0,27,3],[17,0,17,3],[22,0,22,3],[9,0,9,1],[6,22,6,34],[8,0,8,1],[34,8,34,20],[32,8,32,20],[32,0,32,2],[29,0,29,3],[20,0,20,3],[19,0,19,3],[28,0,28,3],[18,0,18,3],[33,0,33,2],[33,8,33,20],[21,0,21,3],[26,0,26,3],[24,0,24,3],[25,0,25,3],[4,16,4,21],[9,2,9,14],[8,2,8,5],[7,2,7,14],[14,0,14,3],[13,0,13,3],[3,0,5,15],[6,16,6,21],[7,16,7,21],[7,0,7,1],[9,16,9,18]]}
[]
[]
[]
["Närvarorapport för deltagare i socialfondsprojekt  Insatser inom Care - Insatser för kvinnor och mön från Ukraina som omfattas av massflyktingsdirektivet",null,null,null,null,null,null,null,null,null,null,null,null,null,null,null,"Diarienummer"]
[null,null,null,null,null,null,null,null,null,null,null,null,null,null,null,null,"Projektnamn"]
[]
["Deltagare",null,null,null,null,null,null,null,null,null,null,null,null,null,null,null,"Redovisningsmånad"]
["Personnummer",null,null,null,null,null,null,null,null,null,null,null,null,null,null,null,"År"]
["Deltagare anvisad från "]
["Typ av ersättning och ålder",null,null,null,null,null,null,null,null,null,null,null,null,null,null,null,{"$f":"IF(C8=0,\"\",\"Ålder\")","v":""},null,null,{"$f":"IF(C8>1,(Data!E21-Data!B28)/365.25,\"\")","v":""},null,null,null,{"$f":"LOOKUP(C9,Data!A2:A8,Data!C2:C8)","v":{"$error":"#N/A"}}]
[]
["Aktiviteter i projektet",null,null,null,"Datum:                                          Närvaro i timmar i projektet per dag och aktivitet",null,null,null,null,null,null,null,null,null,null,null,null,null,null,null,null,null,null,null,null,null,null,null,null,null,null,null,null,null,null,"Antal timmar per aktivitet"]
[null,null,null,null,1,2,3,4,5,6,7,8,9,10,11,12,13,14,15,16,17,18,19,20,21,22,23,24,25,26,27,28,29,30,31]
[null,null,null,null,null,null,null,null,null,null,null,null,null,null,null,null,null,null,null,null,null,null,null,null,null,null,null,null,null,null,null,null,null,null,null,{"$f":"SUM(E14:AI14)","v":0}]
[null,null,null,null,null,null,null,null,null,null,null,null,null,null,null,null,null,null,null,null,null,null,null,null,null,null,null,null,null,null,null,null,null,null,null,0]
[null,null,null,null,null,null,null,null,null,null,null,null,null,null,null,null,null,null,null,null,null,null,null,null,null,null,null,null,null,null,null,null,null,null,null,0]
[null,null,null,null,null,null,null,null,null,null,null,null,null,null,null,null,null,null,null,null,null,null,null,null,null,null,null,null,null,null,null,null,null,null,null,0]
[null,null,null,null,null,null,null,null,null,null,null,null,null,null,null,null,null,null,null,null,null,null,null,null,null,null,null,null,null,null,null,null,null,null,null,0]
[null,null,null,null,null,null,null,null,null,null,null,null,null,null,null,null,null,null,null,null,null,null,null,null,null,null,null,null,null,null,null,null,null,null,null,0]
[null,null,null,null,null,null,null,null,null,null,null,null,null,null,null,null,null,null,null,null,null,null,null,null,null,null,null,null,null,null,null,null,null,null,null,0]
[null,null,null,null,null,null,null,null,null,null,null,null,null,null,null,null,null,null,null,null,null,null,null,null,null,null,null,null,null,null,null,null,null,null,null,0]
[null,null,null,null,null,null,null,null,null,null,null,null,null,null,null,null,null,null,null,null,null,null,null,null,null,null,null,null,null,null,null,null,null,null,null,0]
[null,null,null,null,null,null,null,null,null,null,null,null,null,null,null,null,null,null,null,null,null,null,null,null,null,null,null,null,null,null,null,null,null,null,null,0]
[null,null,null,null,null,null,null,null,null,null,null,null,null,null,null,null,null,null,null,null,null,null,null,null,null,null,null,null,null,null,null,null,null,null,null,0]
[null,null,null,null,null,null,null,null,null,null,null,null,null,null,null,null,null,null,null,null,null,null,null,null,null,null,null,null,null,null,null,null,null,null,null,0]
[null,null,null,null,null,null,null,null,null,null,null,null,null,null,null,null,null,null,null,null,null,null,null,null,null,null,null,null,null,null,null,null,null,null,null,0]
[null,null,null,null,null,null,null,null,null,null,null,null,null,null,null,null,null,null,null,null,null,null,null,null,null,null,null,null,null,null,null,null,null,null,null,0]
[null,null,null,null,null,null,null,null,null,null,null,null,null,null,null,null,null,null,null,null,null,null,null,null,null,null,null,null,null,null,null,null,null,null,null,0]
[null,null,null,null,null,null,null,null,null,null,null,null,null,null,null,null,null,null,null,null,null,null,null,null,null,null,null,null,null,null,null,null,null,null,null,0]
["Antal närvarotimmar i projektet per dag                          ",null,null,null,{"$f":"SUM(E14:E29)","v":0},{"$f":"SUM(F14:F29)","v":0},0,0,0,0,0,0,0,0,0,0,0,0,0,0,0,0,0,0,0,0,0,0,0,0,0,0,0,0,0]
[]
[null,null,null,null,null,null,null,null,null,null,null,null,null,null,null,null,null,null,null,null,null,"Totala närvarotimmar i projektet för månaden",null,null,null,null,null,null,null,null,null,null,null,null,null,{"$f":"SUM(AJ14:AJ29)","v":0}]
[]
["Underskrift deltagaren",null,null,null,null,null,null,null,"Underskrift ansvarig för deltagarnärvaro"]
[]
[null,null,null,null,null,null,null,null,"Namnförtydligande"]